bitfinex-derivatives/quotes_SOLF0:USTF0_20260208
["timestamp","ask_amount","ask_price","bid_price","bid_amount"]
[1770510724130,3.86735613,87.168,87.14,3.98789221]
[1770510726829,3.86735613,87.168,87.13,3.82837775]
[1770510727026,3.86735613,87.168,87.125,0.14492626]
[1770510727228,3.86735613,87.168,87.13,3.82837775]
[1770510727828,3.85981463,87.166,87.13,3.82837775]
[1770510728431,3.85981463,87.166,87.13,4.02333887]
[1770510729125,9.14,87.189,87.14,3.82837775]
[1770510729126,3.85981463,87.188,87.14,3.82837775]
[1770510729328,3.85981463,87.186,87.15,3.82837775]
[1770510729930,3.87057679,87.182,87.139,0.19496112]
[1770510730130,3.87057679,87.182,87.087,34.39]
[1770510730131,3.87057679,87.182,87.13,3.82837775]
[1770510730321,3.87057679,87.18,87.13,3.82837775]
[1770510730526,8.24197772,87.181,87.13,3.82837775]
[1770510730527,3.87057679,87.174,87.13,3.82837775]
[1770510731229,3.87057679,87.172,87.13,3.82837775]
[1770510731934,3.87057679,87.168,87.13,3.82837775]
[1770510734127,3.87057679,87.168,87.13,3.9952079]
[1770510734328,3.8747826,87.166,87.13,3.9952079]
[1770510735737,10.3333,87.165,87.13,3.9952079]
[1770510735934,3.86253904,87.177,87.141,0.19131727]
[1770510736139,3.86253904,87.175,87.141,0.19131727]
[1770510736339,3.86253904,87.173,87.141,0.19131727]
[1770510737132,3.86253904,87.173,87.15,3.82837775]
[1770510737538,3.86253904,87.173,87.141,0.19131727]
[1770510738342,3.86253904,87.173,87.15,3.82837775]
[1770510738642,3.86253904,87.173,87.15,7.775e-05]
[1770510738940,3.86253904,87.173,87.141,0.19131727]
[1770510745246,3.86129564,87.183,87.15,3.82878726]
[1770510745545,3.86129564,87.181,87.15,3.82878726]
[1770510745739,3.86129564,87.179,87.15,3.82878726]
[1770510746339,9.14,87.189,87.151,0.19380407]
[1770510746647,3.86129564,87.187,87.151,0.19380407]
[1770510746848,3.84654123,87.185,87.151,0.19380407]
[1770510747146,8.25011839,87.184,87.151,0.19380407]
[1770510747338,3.84654123,87.185,87.15,3.82878726]
[1770510747645,3.84654123,87.183,87.15,3.82878726]
[1770510747845,3.84654123,87.181,87.15,3.82878726]
[1770510748040,3.84654123,87.179,87.15,3.82878726]
[1770510749644,3.86194515,87.191,87.16,3.82878726]
[1770510749843,12.12867606,87.19,87.16,3.82878726]
[1770510750043,12.12867606,87.189,87.16,3.82878726]
[1770510750345,3.86194515,87.189,87.16,3.82878726]
[1770510750746,3.85608692,87.187,87.16,3.82878726]
[1770510754446,8.5,87.192,87.17,3.82878726]
[1770510763653,3.88357089,87.212,87.18,3.82878726]
[1770510763852,3.81714113,87.21,87.142,3.72529189]
[1770510764063,3.81714113,87.209,87.16,3.82878726]
[1770510764460,3.81714113,87.209,87.171,3.72529189]
[1770510764662,3.81714113,87.209,87.18,3.82878726]
[1770510764856,3.81714113,87.209,87.171,3.72529189]
[1770510765067,3.81714113,87.209,87.161,3.72529189]
[1770510765768,3.81714113,87.198,87.17,3.82878726]
[1770510766067,3.81714113,87.228,87.171,3.72529189]
[1770510766272,3.81714113,87.202,87.161,3.72529189]
[1770510767163,3.81714113,87.212,87.171,3.72529189]
[1770510769465,5.87,87.218,87.191,3.72529189]
[1770510773275,5.87,87.218,87.2,3.82878726]
[1770510773580,1.69800001,87.218,87.2,3.82878726]
[1770510774074,1.69800001,87.218,87.191,3.72529189]
[1770510774474,1.69800001,87.218,87.201,3.72529189]
[1770510774675,3.81714113,87.248,87.201,3.72529189]
[1770510774976,10.3246,87.238,87.211,3.72529189]
[1770510776077,3.81714113,87.237,87.201,3.72529189]
[1770510776277,3.81714113,87.255,87.211,3.72529189]
[1770510777776,3.81714113,87.252,87.211,3.72529189]
[1770510779779,3.81714113,87.252,87.22,3.82878726]
[1770510780785,3.81714113,87.252,87.211,3.72529189]
[1770510781377,3.81714113,87.252,87.22,3.82878726]
[1770510782285,3.81714113,87.252,87.211,3.72529189]
[1770510784284,3.81714113,87.252,87.22,3.82878726]
[1770510785481,14.14054113,87.248,87.22,3.82878726]
[1770510785681,3.93567459,87.247,87.211,3.72529189]
[1770510789986,3.93567459,87.241,87.2,3.82878726]
[1770510790187,3.93567459,87.241,87.147,34.43]
[1770510790188,3.93567459,87.241,87.19,3.82878726]
[1770510791785,10.3258,87.228,87.19,3.82878726]
[1770510791985,10.3258,87.228,87.191,2.36498968]
[1770510792586,3.93032591,87.232,87.191,2.36498968]
[1770510793192,3.93032591,87.232,87.2,3.82878726]
[1770510793793,3.93032591,87.226,87.191,2.36498968]
[1770510794786,10.3262,87.225,87.191,2.36498968]
[1770510794988,3.93032591,87.224,87.191,2.36498968]
[1770510796390,3.93032591,87.236,87.201,2.34402896]
[1770510796592,3.93032591,87.259,87.22,3.82878726]
[1770510797693,3.93032591,87.255,87.22,3.82878726]
[1770510798690,3.93032591,87.255,87.22,6.2105997]
[1770510798998,9.03,87.268,87.203,10.3287]
[1770510798999,9.03,87.268,87.231,2.38181244]
[1770510799794,3.93032591,87.267,87.231,2.38181244]
[1770510801395,3.93032591,87.266,87.231,2.38181244]
[1770510802299,3.93032591,87.264,87.231,2.38181244]
[1770510803002,10.3217,87.263,87.231,2.38181244]
[1770510803301,3.93032591,87.262,87.231,2.38181244]
[1770510803699,3.95748235,87.259,87.21,3.82117401]
[1770510804898,10.3235,87.248,87.21,3.82117401]
[1770510805099,10.3235,87.248,87.22,3.82117401]
[1770510805402,10.3235,87.248,87.135,28.39962936]
[1770510805403,10.3223,87.258,87.24,7.401e-05]
[1770510805596,12.98231285,87.268,87.23,3.82117401]
[1770510805799,3.95231285,87.267,87.23,3.82117401]
[1770510806298,14.27361285,87.266,87.23,3.82117401]
[1770510806500,3.95231285,87.265,87.23,3.82117401]
[1770510807607,10.3215,87.264,87.23,3.82117401]
[1770510808304,3.95231285,87.265,87.203,10.3287]
[1770510808496,3.95231285,87.265,87.23,3.82117401]
[1770510810608,3.95328963,87.264,87.22,3.82117401]
[1770510811907,3.95668192,87.261,87.22,3.82117401]
[1770510813503,3.95668192,87.261,87.23,3.82117401]
[1770510813905,3.95668192,87.261,87.22,3.82117401]
[1770510814108,10.3233,87.249,87.22,7.401e-05]
[1770510814298,3.97781989,87.248,87.2,3.82117401]
[1770510815795,3.98363454,87.246,87.2,3.82117401]
[1770510816793,3.97666205,87.244,87.2,3.82117401]
[1770510816994,3.97666205,87.244,87.19,3.82117401]
[1770510817704,3.97666205,87.234,87.19,3.82117401]
[1770510819804,3.97666205,87.234,87.2,3.82117401]
[1770510821801,3.97666205,87.234,87.183,10.3311]
[1770510821802,3.98260688,87.246,87.21,3.82117401]
[1770510823509,3.98260688,87.246,87.2,3.82117401]
[1770510825306,10.3238,87.245,87.2,3.82117401]
[1770510826609,14.30629694,87.245,87.2,3.82117401]
[1770510827911,3.98249694,87.244,87.2,3.82117401]
[1770510828812,3.98249694,87.244,87.21,3.82117401]
[1770510829210,10.3241,87.243,87.21,3.82117401]
[1770510830812,14.30669963,87.243,87.21,3.82117401]
[1770510831113,9.61,87.242,87.21,3.82117401]
[1770510832218,3.98259963,87.24,87.2,3.82117401]
[1770510833716,10.3245,87.239,87.2,3.82117401]
[1770510833915,9.61,87.242,87.21,3.82117401]
[1770510835415,9.61,87.242,87.22,3.82117401]
[1770510836121,9.61,87.242,87.23,3.82117401]
[1770510836617,9.61,87.242,87.22,3.82117401]
[1770510843918,9.61,87.242,87.23,3.82117401]
[1770510844126,3.024e-05,87.298,87.23,3.82117401]
[1770510844318,4.07132354,87.328,87.27,3.82117401]
[1770510844525,4.07132354,87.286,87.19,21.4040265]
[1770510844824,4.08646275,87.269,87.21,3.82117401]
[1770510845025,4.08646275,87.269,87.22,3.82117401]
[1770510845219,4.08646275,87.269,87.23,3.82117401]
[1770510846425,4.08644824,87.267,87.22,3.82117401]
[1770510847416,4.39243787,87.261,87.21,3.82117401]
[1770510847926,4.39243787,87.261,87.22,3.82117401]
[1770510848721,4.2706526,87.257,87.22,3.82117401]
[1770510849021,4.2706526,87.257,87.21,3.82117401]
[1770510850226,4.2706526,87.255,87.21,3.82117401]
[1770510850928,4.25015161,87.253,87.2,3.82117401]
[1770510851525,4.25015161,87.253,87.21,3.82117401]
[1770510851729,4.25015161,87.251,87.21,3.82117401]
[1770510852430,4.25015161,87.251,87.22,3.82117401]
[1770510853629,4.25015161,87.251,87.21,3.82117401]
[1770510854530,4.25015161,87.251,87.2,3.82117401]
[1770510855129,4.25015161,87.251,87.21,3.82117401]
[1770510855720,4.25015161,87.251,87.23,3.82117401]
[1770510855920,4.29112716,87.262,87.23,3.82117401]
[1770510856720,4.29112716,87.262,87.22,3.82117401]
[1770510857032,4.26888971,87.26,87.22,3.82117401]
[1770510857230,4.26888971,87.258,87.22,3.82117401]
[1770510858027,4.26888971,87.254,87.21,3.82117401]
[1770510859237,10.3232,87.25,87.21,3.82117401]
[1770510859427,4.29486856,87.249,87.21,3.82117401]
[1770510859627,4.29486856,87.261,87.22,3.82117401]
[1770510859835,4.29486856,87.276,87.25,3.82117401]
[1770510860038,4.29486856,87.276,87.26,7.401e-05]
[1770510861030,4.29486856,87.276,87.25,3.82117401]
[1770510862733,8.08,87.277,87.26,3.82117401]
[1770510863236,4.3061907,87.287,87.25,3.82117401]
[1770510863433,4.3061907,87.287,87.25,3.81879165]
[1770510864635,4.28383781,87.285,87.25,3.81879165]
[1770510867836,4.28560504,87.282,87.25,3.81879165]
[1770510868133,10.3193,87.283,87.25,3.81879165]
[1770510868341,4.28560504,87.297,87.26,3.81879165]
[1770510871243,10.3179,87.295,87.26,3.81879165]
[1770510871442,14.61089706,87.295,87.26,3.81879165]
[1770510873345,10.3183,87.292,87.26,3.81879165]
[1770510874741,4.29470404,87.294,87.26,3.81879165]
[1770510875735,10.3182,87.293,87.26,3.81879165]
[1770510876644,14.61230788,87.293,87.26,3.81879165]
[1770510876842,4.29410788,87.292,87.26,3.81879165]
[1770510877047,4.29410788,87.289,87.234,10.3251]
[1770510877245,4.29410788,87.289,87.25,3.81879165]
[1770510877649,4.29410788,87.287,87.24,3.81879165]
[1770510878740,10.3194,87.283,87.24,3.81879165]
[1770510879048,4.29539024,87.282,87.24,3.81879165]
[1770510880750,4.28711006,87.28,87.24,3.81879165]
[1770510881047,4.28711006,87.28,87.23,3.81879165]
[1770510881446,4.28711006,87.28,87.24,3.81879165]
[1770510881945,4.28711006,87.277,87.24,3.81879165]
[1770510882743,4.2861251,87.274,87.24,3.81879165]
[1770510885951,10.3205,87.273,87.24,3.81879165]
[1770510886452,14.59633576,87.273,87.24,3.81879165]
[1770510886953,4.26277239,87.272,87.24,3.81879165]
[1770510887652,4.26277239,87.272,87.23,3.81879165]
[1770510888051,4.26277239,87.269,87.22,3.81879165]
[1770510889153,4.26556549,87.229,87.17,3.81879165]
[1770510889647,4.26556549,87.223,87.17,3.81879165]
[1770510889853,4.26556549,87.209,87.15,3.81879165]
[1770510890849,4.22712769,87.194,87.14,3.81879165]
[1770510891049,4.22712769,87.194,87.15,3.81879165]
[1770510891353,4.22712769,87.191,87.14,3.81879165]
[1770510892252,4.22712769,87.191,87.117,10.3389]
[1770510892560,4.22712769,87.191,87.14,3.81879165]
[1770510892750,4.26133967,87.187,87.14,3.81879165]
[1770510892949,4.26133967,87.187,87.15,3.81879165]
[1770510894552,4.29402464,87.207,87.15,3.81879165]
[1770510895060,4.29402464,87.199,87.15,3.81879165]
[1770510895758,4.29402464,87.193,87.14,3.81879165]
[1770510896147,4.29402464,87.193,87.15,3.81879165]
[1770510897251,4.28110867,87.206,87.15,3.81879165]
[1770510897452,4.28110867,87.206,87.17,3.81879165]
[1770510898860,4.28110867,87.206,87.18,3.81879165]
[1770510899863,4.28110867,87.206,87.17,3.81879165]
[1770510901061,4.28110867,87.206,87.16,3.81879165]
[1770510901266,4.28110867,87.206,87.17,3.81879165]
[1770510901667,4.2540851,87.204,87.16,3.81879165]
[1770510902664,4.2540851,87.204,87.108,3.18985296]
[1770510902868,4.2540851,87.204,87.053,21.4040265]
[1770510902869,3.80159179,87.154,87.1,3.81879165]
[1770510903658,3.80159179,87.189,87.13,3.81879165]
[1770510904065,3.80159179,87.189,87.14,3.81879165]
[1770510904260,3.80159179,87.19,87.15,3.81879165]
[1770510905264,3.80159179,87.19,87.141,3.18985296]
[1770510905765,3.82863023,87.187,87.141,3.18985296]
[1770510906867,10.331,87.185,87.141,3.18985296]
[1770510907666,160.6162,87.233,87.141,5.296e-05]
[1770510907667,3.82863023,87.184,87.141,5.296e-05]
[1770510907966,3.82863023,87.184,87.13,3.81879165]
[1770510908567,160.6329,87.224,87.13,3.81879165]
[1770510908568,3.94274279,87.179,87.13,3.81879165]
[1770510908770,10.3329,87.169,87.13,3.81879165]
[1770510908971,3.92086759,87.168,87.11,3.81879165]
[1770510909477,3.92086759,87.161,87.11,3.81879165]
[1770510909775,3.92086759,87.161,87.093,1.99686126]
[1770510909776,3.92086759,87.149,87.1,3.81879165]
[1770510910679,10.3358,87.144,87.1,3.81879165]
[1770510910979,3.92086759,87.149,87.11,3.81879165]
[1770510915579,3.92086759,87.149,87.101,0.07955798]
[1770510915880,10.3359,87.143,87.101,0.07955798]
[1770510916075,14.26011687,87.143,87.101,0.07955798]
[1770510916281,3.92421687,87.142,87.101,0.07955798]
[1770510917177,3.92421687,87.169,87.111,0.06772982]
[1770510917478,3.92421687,87.169,87.121,0.06772982]
[1770510917678,3.92421687,87.169,87.13,3.81879165]
[1770510917872,3.92421687,87.169,87.083,1.99726237]
[1770510917873,3.92421687,87.195,87.16,3.81879165]
[1770510918074,3.92421687,87.195,87.141,0.06772982]
[1770510918283,3.92421687,87.195,87.15,3.81879165]
[1770510918676,3.92421687,87.195,87.15,9.165e-05]
[1770510918879,20.649,87.24,87.083,1.99726237]
[1770510918880,3.92421687,87.179,87.13,3.81879165]
[1770510919081,3.92421687,87.179,87.127,0.11848326]
[1770510919375,3.92421687,87.179,87.13,3.81879165]
[1770510919572,3.92421687,87.179,87.14,3.81879165]
[1770510920175,10.332,87.176,87.14,3.81879165]
[1770510920380,3.92421687,87.175,87.13,3.81879165]
[1770510920580,10.3337,87.162,87.12,3.81879165]
[1770510922575,3.92421687,87.175,87.13,3.81879165]
[1770510922785,3.92836164,87.173,87.14,3.81879165]
[1770510923081,3.92836164,87.173,87.13,3.81879165]
[1770510923687,3.92836164,87.171,87.13,3.81879165]
[1770510923885,3.92836164,87.171,87.12,3.85091962]
[1770510924083,3.92836164,87.169,87.12,3.81879165]
[1770510924683,10.3339,87.16,87.12,3.81879165]
[1770510925080,14.26300362,87.16,87.12,3.81879165]
[1770510925480,14.26300362,87.16,87.12,3.83092353]
[1770510925887,3.92910362,87.16,87.13,3.83092353]
[1770510927196,17.1527,87.17,87.14,3.83092353]
[1770510927791,6.82,87.17,87.14,3.83092353]
[1770510929783,6.82,87.17,87.15,3.83092353]
[1770510930892,10.3301,87.192,87.16,3.83092353]
[1770510931087,10.3301,87.192,87.13,10.3373]
[1770510931088,10.3301,87.192,87.15,3.83092353]
[1770510932193,10.3301,87.192,87.16,3.83092353]
[1770510932393,10.3301,87.192,87.15,3.83092353]
[1770510932794,10.3301,87.192,87.16,3.83092353]
[1770510934391,3.95756202,87.197,87.17,3.83092353]
[1770510936300,10.3286,87.205,87.17,3.83092353]
[1770510936999,3.97304364,87.209,87.17,3.83092353]
[1770510937202,3.97304364,87.209,87.094,160.8708]
[1770510937203,9.83,87.217,87.18,3.83092353]
[1770510941006,9.83,87.217,87.19,3.83092353]
[1770510941598,9.83,87.217,87.2,3.83092353]
[1770510941796,3.98181775,87.238,87.2,3.83092353]
[1770510943302,3.98181775,87.238,87.19,3.83092353]
[1770510944615,3.98181775,87.238,87.18,3.83092353]
[1770510945103,3.98181775,87.238,87.19,3.83092353]
[1770510945310,3.98400626,87.235,87.18,3.83092353]
[1770510946411,3.98400626,87.229,87.18,3.83092353]
[1770510947208,3.97279639,87.219,87.16,3.83092353]
[1770510947804,3.97279639,87.218,87.16,3.83092353]
[1770510948510,3.97279639,87.209,87.16,3.83092353]
[1770510949814,3.94681352,87.205,87.17,3.83092353]
[1770510955913,10.3271,87.218,87.171,0.02938988]
[1770510956118,3.94390783,87.22,87.181,0.02938988]
[1770510956817,14.27070783,87.22,87.181,0.02938988]
[1770510957020,3.9446764,87.219,87.181,0.02938988]
[1770510957416,3.9446764,87.213,87.17,3.83092353]
[1770510958821,3.94390972,87.211,87.17,3.83092353]
[1770510960822,3.93968505,87.209,87.17,3.83092353]
[1770510961823,3.93968505,87.207,87.17,3.83092353]
[1770510965131,3.93968505,87.207,87.15,3.83092353]
[1770510965333,3.93968505,87.207,87.16,3.83092353]
[1770510966233,3.93744581,87.205,87.16,3.83092353]
[1770510966831,3.80547683,87.174,87.133,0.0454346]
[1770510967132,3.80547683,87.174,87.121,3.64710718]
[1770510967531,3.80547683,87.159,87.121,3.64710718]
[1770510967723,3.80547683,87.159,87.111,3.64710718]
[1770510968122,10.3354,87.148,87.111,3.64710718]
[1770510968523,3.80547683,87.147,87.1,3.83092353]
[1770510969137,10.3356,87.145,87.1,3.83092353]
[1770510969431,3.80547683,87.144,87.1,3.83092353]
[1770510970725,10.3361,87.141,87.1,3.83092353]
[1770510973538,3.56589232,87.14,87.1,3.83092353]
[1770510974539,10.337,87.134,87.083,1.99726237]
[1770510974834,3.56589232,87.133,87.087,3.76383153]
[1770510975628,10.3378,87.127,87.087,3.76383153]
[1770510975828,160.7183,87.177,87.071,3.76383153]
[1770510975829,3.56589232,87.126,87.071,3.76383153]
[1770510976033,3.56589232,87.126,87.08,3.83092353]
[1770510976432,3.56589232,87.126,87.09,3.83092353]
[1770510976933,3.56589232,87.126,87.071,3.76383153]
[1770510977231,3.56589232,87.126,87.08,3.83092353]
[1770510978135,3.56589232,87.149,87.1,7.59475506]
[1770510978533,3.56589232,87.149,87.11,3.83092353]
[1770510978942,3.56589232,87.149,87.11,2.353e-05]
[1770510979536,10.3364,87.139,87.11,2.353e-05]
[1770510980137,3.56589232,87.149,87.11,2.353e-05]
[1770510981741,3.56589232,87.149,87.101,3.76383153]
[1770510981742,3.56589232,87.149,87.12,3.83092353]
[1770510982244,3.56589232,87.149,87.11,3.83092353]
[1770510982945,10.3321,87.175,87.14,3.83092353]
[1770510983136,3.56589232,87.176,87.15,2.353e-05]
[1770510983540,10.3306,87.188,87.16,3.83092353]
[1770510984948,3.56589232,87.193,87.16,3.83092353]
[1770510985444,3.56589232,87.193,87.16,3.82752441]
[1770510985649,3.56589232,87.206,87.17,3.82752441]
[1770510986351,3.56589232,87.206,87.18,3.82752441]
[1770510986748,3.56589232,87.206,87.091,182.2807265]
[1770510986749,10.3265,87.222,87.19,3.82752441]
[1770510987346,3.56589232,87.223,87.19,3.82752441]
[1770510987747,3.56589232,87.223,87.18,3.82752441]
[1770510988350,7.94,87.236,87.2,3.82752441]
[1770510988550,11.50589232,87.236,87.2,3.82752441]
[1770510988754,3.56589232,87.235,87.181,3.76383153]
[1770510989754,3.56589232,87.233,87.181,3.76383153]
[1770510992656,3.56589232,87.231,87.181,3.76383153]
[1770510993852,9.64,87.23,87.181,3.76383153]
[1770510994461,3.56589232,87.229,87.181,3.76383153]
[1770510995455,10.3265,87.222,87.181,3.76383153]
[1770510995662,3.65825798,87.221,87.181,3.76383153]
[1770510996062,3.65825798,87.218,87.167,3.93284738]
[1770510997965,10.3278,87.212,87.167,3.93284738]
[1770510999153,13.98605798,87.212,87.167,3.93284738]
[1770511000661,3.65825798,87.209,87.141,3.93284738]
[1770511001861,10.3291,87.2,87.141,3.93284738]
[1770511004664,13.98735798,87.2,87.141,3.93284738]
[1770511006569,3.65825798,87.199,87.141,3.93284738]
[1770511009664,10.3294,87.198,87.141,3.93284738]
[1770511009869,3.65825798,87.197,87.141,3.93284738]
[1770511010263,3.65825798,87.195,87.141,3.93284738]
[1770511011461,3.65825798,87.195,87.151,3.93284738]
[1770511011869,3.65825798,87.195,87.16,3.82768874]
[1770511016170,8.99,87.194,87.16,3.82768874]
[1770511018970,8.99,87.194,87.151,3.93284738]
[1770511020072,3.65825798,87.219,87.171,3.93284738]
[1770511020279,3.65825798,87.219,87.18,3.82768874]
[1770511020478,3.65825798,87.219,87.171,3.93284738]
[1770511021073,3.65825798,87.219,87.18,3.82768874]
[1770511022372,4.56606215,87.236,87.21,3.82768874]
[1770511023876,4.56606215,87.236,87.186,10.3307]
[1770511024176,4.5566039,87.25,87.21,3.82768874]
[1770511024576,4.5566039,87.25,87.22,3.82768874]
[1770511026283,4.5566039,87.25,87.21,3.82768874]
[1770511028079,4.5566039,87.25,87.152,55.8340265]
[1770511028080,4.5566039,87.25,87.2,3.82768874]
[1770511029084,4.5566039,87.25,87.21,3.82768874]
[1770511029580,4.5566039,87.25,87.22,3.82768874]
[1770511029779,5.83,87.267,87.24,3.82768874]
[1770511029976,5.83,87.267,87.162,20.6672]
[1770511029977,5.83,87.267,87.23,3.82768874]
[1770511030172,5.83,87.267,87.24,3.82768874]
[1770511031683,5.83,87.267,87.25,3.82768874]
[1770511031978,5.83,87.267,87.169,160.7326]
[1770511031979,4.54853131,87.301,87.26,3.82768874]
[1770511032984,4.54853131,87.301,87.27,3.82768874]
[1770511033277,4.61609889,87.315,87.28,3.82768874]
[1770511033495,4.61609889,87.315,87.27,3.82768874]
[1770511033679,4.61609889,87.339,87.29,3.82768874]
[1770511033879,4.61609889,87.337,87.29,3.82768874]
[1770511034684,4.55886837,87.331,87.29,3.82768874]
[1770511035388,4.55886837,87.331,87.3,3.82768874]
[1770511035779,4.55886837,87.331,87.221,34.43]
[1770511035780,4.55886837,87.331,87.28,3.82768874]
[1770511036679,4.55886837,87.331,87.264,10.3215]
[1770511036680,4.55886837,87.331,87.29,3.82768874]
[1770511036988,4.55886837,87.331,87.28,3.82768874]
[1770511037488,4.55886837,87.331,87.29,3.82768874]
[1770511038280,4.55886837,87.331,87.3,3.82768874]
[1770511042889,4.55886837,87.331,87.29,10.3185]
[1770511042890,4.55886837,87.331,87.28,3.82768874]
[1770511043091,4.59356343,87.329,87.27,3.82768874]
[1770511043787,3.82768874,87.33,87.27,3.82768874]
[1770511043788,4.59356343,87.328,87.27,3.82768874]
[1770511044095,4.59356343,87.309,87.25,10.3231]
[1770511044389,4.59356343,87.309,87.26,3.82768874]
[1770511044591,4.59356343,87.307,87.26,3.82768874]
[1770511047394,4.59356343,87.307,87.26,3.8185621]
[1770511048495,4.54692001,87.342,87.28,3.8185621]
[1770511048703,4.54692001,87.342,87.31,3.8185621]
[1770511048997,4.54692001,87.342,87.3,3.8185621]
[1770511049199,4.54692001,87.342,87.31,3.8185621]
[1770511050300,4.55915726,87.362,87.32,3.8185621]
[1770511050899,4.57998762,87.358,87.32,3.8185621]
[1770511051397,4.57998762,87.358,87.29,9.53329022]
[1770511051999,4.57998762,87.353,87.29,9.53329022]
[1770511052701,10.3115,87.349,87.29,9.53329022]
[1770511052998,4.57998762,87.353,87.29,9.53329022]
[1770511052999,4.57998762,87.353,87.291,10.3183]
[1770511053400,8.21193329,87.415,87.291,10.3183]
[1770511053401,4.56915751,87.399,87.31,9.53329022]
[1770511053996,4.56915751,87.386,87.313,10.3157]
[1770511054196,4.56915751,87.386,87.31,9.53329022]
[1770511054890,4.58066526,87.384,87.323,10.3145]
[1770511055297,4.58066526,87.384,87.31,9.53329022]
[1770511055697,4.58071371,87.439,87.33,9.53329022]
[1770511056299,4.58071371,87.418,87.35,9.53329022]
[1770511056797,4.58071371,87.418,87.352,10.3111]
[1770511057306,4.58071371,87.418,87.37,9.53329022]
[1770511057508,9.53329022,87.47,87.37,9.53329022]
[1770511057509,4.57093381,87.432,87.37,9.53329022]
[1770511058398,441.76086395,87.475,87.342,160.4128]
[1770511058399,4.57093381,87.46,87.342,160.4128]
[1770511058603,4.57093381,87.46,87.39,9.53329022]
[1770511058803,4.57093381,87.46,87.37,9.53329022]
[1770511059501,4.59967532,87.427,87.35,9.53329022]
[1770511059899,4.59967532,87.427,87.345,10.3119]
[1770511060407,9.53329022,87.45,87.331,10.3135]
[1770511060408,4.59967532,87.422,87.331,10.3135]
[1770511061302,4.57610998,87.413,87.331,10.3135]
[1770511062303,4.57610998,87.409,87.331,10.3135]
[1770511062802,4.66554275,87.424,87.35,9.53329022]
[1770511063105,10.53515368,87.492,87.32,160.28]
[1770511063106,4.66554275,87.469,87.37,9.53329022]
[1770511063307,4.66554275,87.462,87.39,9.53329022]
[1770511063901,9.53329022,87.5,87.39,9.53329022]
[1770511063902,4.66554275,87.459,87.39,9.53329022]
[1770511064497,4.66554275,87.457,87.39,9.53329022]
[1770511064898,14.94032207,87.473,87.393,10.3062]
[1770511065102,4.64332207,87.472,87.41,9.53329022]
[1770511068912,4.64332207,87.472,87.412,10.304]
[1770511069804,4.64332207,87.472,87.41,9.53329022]
[1770511071408,4.64332207,87.472,87.411,10.3041]
[1770511072606,4.67309751,87.469,87.41,9.53329022]
[1770511072803,4.67309751,87.469,87.396,10.3058]
[1770511073914,4.67309751,87.467,87.39,9.53329022]
[1770511074814,10.2992,87.454,87.39,9.53329022]
[1770511075205,14.95129397,87.454,87.39,9.53329022]
[1770511075407,4.65209397,87.453,87.39,9.53329022]
[1770511076211,4.65209397,87.453,87.343,34.33]
[1770511076212,4.65209397,87.446,87.37,9.53329022]
[1770511076404,4.65209397,87.446,87.37,19.84229022]
[1770511077715,4.65479735,87.441,87.37,19.84229022]
[1770511078516,4.65479735,87.439,87.37,19.84229022]
[1770511080915,4.65792455,87.453,87.39,9.53329022]
[1770511082822,9.53329022,87.5,87.39,9.53329022]
[1770511082823,4.66455765,87.452,87.39,9.53329022]
[1770511084623,4.6548029,87.449,87.391,10.3065]
[1770511084821,4.6548029,87.449,87.37,9.53329022]
[1770511086320,4.65477847,87.447,87.37,9.53329022]
[1770511086523,4.65477847,87.447,87.39,9.53329022]
[1770511087718,4.65477847,87.447,87.392,10.3064]
[1770511092923,4.66582732,87.481,87.41,9.53329022]
[1770511094733,14.96182732,87.481,87.42,10.3031]
[1770511095030,4.69951824,87.48,87.42,10.3031]
[1770511097125,4.68888913,87.473,87.41,19.83759022]
[1770511098020,4.68888913,87.473,87.422,10.3029]
[1770511098625,4.68356385,87.495,87.431,10.3017]
[1770511098931,4.68356385,87.495,87.43,9.53329022]
[1770511099525,4.68356385,87.495,87.431,10.3018]
[1770511100721,4.68356385,87.495,87.441,10.3006]
[1770511104830,4.68609317,87.512,87.452,10.2992]
[1770511105029,4.68609317,87.512,87.45,9.53329022]
[1770511105429,4.68609317,87.512,87.47,3.7995406]
[1770511106234,4.68609317,87.512,87.403,21.4040265]
[1770511106235,4.68609317,87.509,87.45,3.7995406]
[1770511106432,4.68609317,87.507,87.45,3.7995406]
[1770511106635,4.68609317,87.501,87.45,3.7995406]
[1770511107135,4.70841705,87.497,87.45,3.7995406]
[1770511107333,4.70841705,87.489,87.43,3.7995406]
[1770511107633,4.70841705,87.487,87.45,3.7995406]
[1770511109233,4.70841705,87.487,87.44,3.7995406]
[1770511109430,4.70841705,87.487,87.44,3.80261963]
[1770511110839,4.70841705,87.487,87.45,3.80261963]
[1770511112631,4.67208271,87.501,87.45,3.80261963]
[1770511112836,4.67208271,87.501,87.47,3.80261963]
[1770511113744,4.67208271,87.501,87.46,3.80261963]
[1770511116645,4.66689334,87.495,87.428,10.3021]
[1770511116850,3.80261963,87.5,87.44,3.80261963]
[1770511116851,4.66689334,87.489,87.44,3.80261963]
[1770511118141,4.66689334,87.489,87.45,3.80261963]